bitfinex/quotes_SOLUSD_20230101
["timestamp","ask_amount","ask_price","bid_price","bid_amount"]
[1672572315988,40.0,9.969,9.9515,40.0]
[1672572316190,90.72,9.9689,9.9517,301.8]
[1672572316408,40.0,9.9688,9.952,40.0]
[1672572316625,40.0,9.9686,9.9523,40.0]
[1672572316816,90.73,9.9685,9.9525,301.8]
[1672572317029,40.0,9.9684,9.9527,301.8]
[1672572317247,90.73,9.9683,9.9529,301.8]
[1672572317459,40.0,9.9682,9.9531,301.8]
[1672572317680,90.73,9.9681,9.9533,301.8]
[1672572317888,40.0,9.968,9.9535,301.8]
[1672572318086,90.73,9.9679,9.9537,301.8]
[1672572318294,90.73,9.9679,9.9529,114.4274]
[1672572318295,40.0,9.9678,9.9539,301.8]
[1672572318512,40.0,9.9676,9.9541,301.8]
[1672572318724,90.73,9.9675,9.9543,301.8]
[1672572319049,100.80730776,9.9674,9.9545,301.8]
[1672572319244,40.0,9.9672,9.9547,341.8]
[1672572319449,40.0,9.967,9.9549,301.8]
[1672572319788,20.0,9.9669,9.9552,40.0]
[1672572319985,40.0,9.9668,9.9554,301.8]
[1672572320195,40.0,9.9668,9.9552,40.0]
[1672572320196,20.0,9.9667,9.9556,301.8]
[1672572320399,40.0,9.9666,9.9558,301.8]
[1672572320609,40.0,9.9664,9.956,301.8]
[1672572320818,20.0,9.9663,9.9562,301.8]
[1672572321135,40.0,9.9662,9.9565,40.0]
[1672572321345,20.0,9.9661,9.9567,301.8]
[1672572321567,20.0,9.9661,9.957,40.0]
[1672572321775,20.0,9.9661,9.9572,301.8]
[1672572321982,40.0,9.966,9.9574,301.8]
[1672572322200,20.0,9.9659,9.9575,75.4]
[1672572322404,40.0,9.9658,9.9566,75.41]
[1672572322615,40.0,9.9656,9.9566,75.41]
[1672572322820,20.0,9.9655,9.9566,75.41]
[1672572323034,40.0,9.9654,9.9566,75.41]
[1672572323247,40.0,9.9654,9.9547,301.8]
[1672572323248,40.0,9.9652,9.9547,301.8]
[1672572323465,40.0,9.965,9.9549,301.8]
[1672572323682,20.0,9.9649,9.9551,301.8]
[1672572323890,40.0,9.9648,9.9553,301.8]
[1672572324091,40.0,9.9646,9.9555,301.8]
[1672572324306,20.0,9.9645,9.9557,301.8]
[1672572324521,20.0,9.9645,9.9545,115.8121]
[1672572324522,40.0,9.9644,9.9559,301.8]
[1672572324721,20.0,9.9643,9.9561,301.8]
[1672572325048,20.0,9.9643,9.9563,301.8]
[1672572325049,95.07884278,9.9643,9.9563,301.8]
[1672572325240,40.0,9.9641,9.9565,301.8]
[1672572325449,40.0,9.9641,9.9566,75.41]
[1672572325450,20.0,9.964,9.9566,75.41]
[1672572325676,40.0,9.9639,9.9566,75.41]
[1672572325885,20.0,9.9638,9.9566,75.41]
[1672572326523,40.0,9.9637,9.9566,75.41]
[1672572326730,20.0,9.9636,9.9555,75.41]
[1672572327127,40.0,9.9635,9.9556,40.0]
[1672572327342,20.0,9.9634,9.9557,75.41]
[1672572327560,20.0,9.9634,9.955,40.0]
[1672572327775,75.07884278,9.9633,9.9553,40.0]
[1672572327983,20.0,9.9632,9.9555,301.8]
[1672572328195,20.0,9.9632,9.9557,301.8]
[1672572328411,20.0,9.9632,9.956,40.0]
[1672572328623,20.0,9.9632,9.9562,301.8]
[1672572328931,20.0,9.9632,9.9564,301.8]
[1672572329151,20.0,9.9632,9.9565,75.41]
[1672572329676,20.0,9.9632,9.9566,40.0]
[1672572329983,20.0,9.9632,9.9567,75.4]
[1672572330298,20.0,9.9632,9.9568,40.0]
[1672572330517,20.0,9.9632,9.957,40.0]
[1672572330727,20.0,9.9632,9.9571,75.4]
[1672572331036,20.0,9.9632,9.9572,341.8]
[1672572331230,20.0,9.9632,9.9575,40.0]
[1672572331440,20.0,9.9632,9.9576,75.4]
[1672572331649,20.0,9.9632,9.9575,75.4]
[1672572332501,20.0,9.9632,9.9574,301.8]
[1672572332707,20.0,9.9632,9.9575,115.4]
[1672572332917,20.0,9.9632,9.9575,75.4]
[1672572333125,20.0,9.9632,9.9577,40.0]
[1672572333345,70.69,9.9739,9.9577,40.0]
[1672572333346,20.0,9.967,9.958,40.0]
[1672572333542,70.72,9.9737,9.9582,301.8]
[1672572333749,40.0,9.9735,9.9584,301.8]
[1672572333960,40.0,9.9735,9.9587,40.0]
[1672572333961,20.0,9.9734,9.9587,40.0]
[1672572334172,158.31988657,9.9734,9.959,40.0]
[1672572334494,198.32099361,9.9733,9.9593,40.0]
[1672572334699,198.32099361,9.9733,9.9595,301.8]
[1672572334908,158.32099361,9.9732,9.9597,301.8]
[1672572335225,158.32099361,9.9731,9.96,40.0]
[1672572335458,40.0,9.973,9.9603,40.0]
[1672572335644,158.32099361,9.973,9.9605,301.8]
[1672572335973,158.32099361,9.973,9.9603,40.0]
[1672572335974,198.32099361,9.9729,9.9608,40.0]
[1672572336285,75.07884278,9.9728,9.9611,40.0]
[1672572336499,40.0,9.9727,9.9614,40.0]
[1672572336695,52.71219741,9.9727,9.9616,301.8]
[1672572336903,87.79104019,9.9726,9.9618,301.8]
[1672572337118,87.79104019,9.9726,9.962,341.8]
[1672572337321,70.52995342,9.9729,9.9623,40.0]
[1672572337322,40.0,9.9724,9.9623,40.0]
[1672572337537,40.0,9.9724,9.9625,301.8]
[1672572337749,75.07884278,9.9723,9.9628,40.0]
[1672572337970,75.07884278,9.9723,9.9631,40.0]
[1672572338295,75.07884278,9.9723,9.9634,40.0]
[1672572338482,75.07884278,9.9723,9.9637,40.0]
[1672572338683,87.79104019,9.9723,9.964,40.0]
[1672572338898,87.79104019,9.9723,9.9642,301.8]
[1672572339116,40.0,9.9721,9.9644,301.8]
[1672572339327,75.07884278,9.9722,9.9646,40.0]
[1672572339548,75.07884278,9.972,9.9647,75.34]
[1672572339952,75.07884278,9.972,9.9648,301.8]
[1672572340162,75.07884278,9.972,9.9649,40.0]
[1672572340392,75.07884278,9.972,9.9651,301.8]
[1672572340585,70.52995342,9.9719,9.9652,75.34]
[1672572340801,70.52995342,9.9719,9.9652,40.0]
[1672572341006,40.0,9.9717,9.9641,75.35]
[1672572341215,40.0,9.9717,9.964,40.0]
[1672572341441,87.437686,9.9716,9.964,40.0]
[1672572341866,87.437686,9.9715,9.964,40.0]
[1672572342265,75.07884278,9.9714,9.964,40.0]
[1672572343860,75.07884278,9.9714,9.9637,40.0]
[1672572344480,40.0,9.9713,9.9633,40.0]
[1672572344905,75.07884278,9.9712,9.9632,40.0]
[1672572345124,40.0,9.9711,9.9631,301.8]
[1672572345337,52.35884322,9.9711,9.9631,301.8]
[1672572345653,87.437686,9.971,9.9632,40.0]
[1672572346056,75.07884278,9.9709,9.9632,40.0]
[1672572346477,75.07884278,9.9709,9.963,116.2108]
[1672572346693,122.88879664,9.9708,9.963,116.2108]
[1672572347126,40.0,9.9706,9.963,116.2108]
[1672572347526,157.96763942,9.9705,9.963,116.2108]
[1672572347738,40.0,9.9704,9.963,116.2108]
[1672572347958,197.96763942,9.9704,9.963,116.2108]
[1672572348166,40.0,9.9702,9.963,116.2108]
[1672572348591,40.0,9.97,9.963,116.2108]
[1672572348998,40.0,9.9698,9.963,116.2108]
[1672572349426,40.0,9.9696,9.963,116.2108]
[1672572349734,40.0,9.9694,9.963,116.2108]
[1672572350157,40.0,9.9692,9.963,116.2108]
[1672572350589,40.0,9.969,9.963,116.2108]
[1672572351003,40.0,9.9688,9.963,116.2108]
[1672572351414,40.0,9.9686,9.963,116.2108]
[1672572351836,40.0,9.9684,9.963,116.2108]
[1672572352279,40.0,9.9682,9.963,116.2108]
[1672572352590,40.0,9.968,9.963,116.2108]
[1672572352993,40.0,9.9678,9.963,116.2108]
[1672572353318,361.01065061,9.9781,9.963,116.2108]
[1672572353539,75.07884278,9.9677,9.963,116.2108]
[1672572354256,40.0,9.9676,9.963,116.2108]
[1672572354684,40.0,9.9674,9.963,116.2108]
[1672572355215,75.07884278,9.9673,9.963,116.2108]
[1672572356256,40.0,9.9672,9.963,116.2108]
[1672572356682,40.0,9.967,9.963,116.2108]
[1672572356890,40.0,9.967,9.9468,145.41362127]
[1672572356891,90.76,9.9669,9.9488,75.46]
[1672572357106,40.0,9.9668,9.9489,52.64638059]
[1672572357323,40.0,9.9666,9.9491,40.0]
[1672572357510,40.0,9.9664,9.9492,75.46]
[1672572357720,90.73,9.9663,9.9493,341.8]
[1672572357940,40.0,9.9662,9.9496,40.0]
[1672572358138,40.0,9.9662,9.9499,40.0]
[1672572358139,40.0,9.966,9.9499,40.0]
[1672572358351,40.0,9.9658,9.9501,301.8]
[1672572358555,90.74,9.9657,9.9503,341.8]
[1672572358765,40.0,9.9656,9.9506,40.0]
[1672572358981,40.0,9.9654,9.9509,40.0]
[1672572359191,40.0,9.9652,9.9511,301.8]
[1672572359508,40.0,9.965,9.9514,40.0]
[1672572359717,20.0,9.9649,9.9517,40.0]
[1672572359936,40.0,9.9648,9.952,40.0]
[1672572360145,20.0,9.9647,9.9522,301.8]
[1672572360356,40.0,9.9646,9.9525,40.0]
[1672572360580,20.0,9.9645,9.9528,40.0]
[1672572360768,20.0,9.9645,9.953,301.8]
[1672572360981,40.0,9.9643,9.9532,301.8]
[1672572361205,20.0,9.9642,9.9535,40.0]
[1672572361412,40.0,9.9641,9.9538,40.0]
[1672572361616,20.0,9.964,9.954,301.8]
[1672572361835,40.0,9.9639,9.9542,301.8]
[1672572362039,20.0,9.9638,9.9543,75.42]
[1672572362255,40.0,9.9637,9.9543,110.884]
[1672572362457,40.0,9.9635,9.9544,75.42]
[1672572362668,20.0,9.9634,9.9544,75.42]
[1672572362872,40.0,9.9633,9.9544,110.884]
[1672572363100,40.0,9.9631,9.9544,110.884]
[1672572363307,20.0,9.963,9.9544,110.884]
[1672572363627,40.0,9.9629,9.9544,110.884]
[1672572363834,202.19466499,9.9629,9.9544,110.884]
[1672572364044,40.0,9.9627,9.9544,110.884]
[1672572364356,40.0,9.9625,9.9544,110.884]
[1672572364683,144.54528432,9.9624,9.9544,110.884]
[1672572364870,40.0,9.9622,9.9544,110.884]
[1672572365415,40.0,9.962,9.9544,110.884]
[1672572365809,40.0,9.9618,9.9544,110.884]
[1672572366243,12.35884322,9.9617,9.9544,110.884]
[1672572375595,40.0,9.9616,9.9544,110.884]
[1672572376022,40.0,9.9614,9.9544,110.884]
[1672572376553,40.0,9.9612,9.9544,110.884]
[1672572376958,40.0,9.961,9.9544,110.884]
[1672572377392,40.0,9.9608,9.9544,110.884]
[1672572378112,40.0,9.9608,9.9545,75.42]
[1672572378321,103.11497806,9.9608,9.9545,75.42]
[1672572378575,40.0,9.9606,9.9544,110.884]
[1672572379601,40.0,9.9604,9.9544,110.884]
[1672572380001,12.35884322,9.9603,9.9544,110.884]
[1672572380969,40.0,9.9604,9.9544,110.884]
[1672572381680,52.35884322,9.9604,9.9544,110.884]
[1672572391490,174.86313565,9.9604,9.9544,110.884]
[1672572393463,111.74815759,9.9604,9.9544,110.884]
[1672572398638,159.8472179,9.9604,9.9544,110.884]
[1672572400727,40.0,9.9602,9.9544,110.884]
[1672572401050,40.0,9.96,9.9544,55.442]
[1672572401250,40.0,9.96,9.9429,40.0]
[1672572401251,90.76,9.9599,9.9431,301.8]
[1672572401464,90.76,9.9599,9.9429,40.0]
[1672572401465,40.0,9.9598,9.9433,301.8]
[1672572401674,40.0,9.9596,9.9435,40.0]
[1672572401879,40.0,9.9594,9.9437,40.0]
[1672572402091,90.76,9.9593,9.9438,88.15286675]
[1672572402300,40.0,9.9592,9.9439,12.65273951]
[1672572402616,40.0,9.9592,9.944,75.5]
[1672572402617,40.0,9.959,9.944,75.5]
[1672572402826,40.0,9.9588,9.9441,12.65248502]
[1672572403028,40.0,9.9586,9.9442,75.5]
[1672572403234,90.72,9.9585,9.9443,12.65223055]
[1672572403444,40.0,9.9584,9.9444,75.5]
[1672572403678,40.0,9.9582,9.9445,12.6519761]
[1672572403871,40.0,9.958,9.9446,75.5]
[1672572404089,90.73,9.9579,9.9447,12.65172165]
[1672572404297,40.0,9.9578,9.9448,75.5]
[1672572404507,40.0,9.9576,9.9449,12.65146721]
[1672572404717,40.0,9.9574,9.945,75.49]
[1672572404932,90.73,9.9573,9.9451,12.65121278]
[1672572405138,40.0,9.9572,9.9452,75.49]
[1672572405352,40.0,9.957,9.9453,12.65095836]
[1672572405678,40.0,9.9568,9.9454,75.49]
[1672572405986,40.0,9.9566,9.9455,12.65070396]
[1672572406172,70.73,9.9565,9.9456,75.49]
[1672572406387,70.73,9.9565,9.9457,12.65044956]
[1672572406388,60.0,9.9564,9.9457,12.65044956]
[1672572406601,110.73,9.9563,9.9457,126.39832237]
[1672572406818,40.0,9.9561,9.9457,126.39832237]
[1672572407032,40.0,9.9559,9.9457,126.39832237]
[1672572407352,40.0,9.9559,9.9458,113.748]
[1672572407353,40.0,9.9557,9.9458,113.748]
[1672572407537,20.0,9.9556,9.9459,12.65019517]
[1672572407752,40.0,9.9554,9.9459,126.39806798]
[1672572407986,40.0,9.9552,9.946,8.41001008]
[1672572408176,20.0,9.9551,9.946,8.41001008]
[1672572408383,40.0,9.9549,9.946,8.41001008]
[1672572408624,40.0,9.9547,9.946,8.41001008]
[1672572408925,20.0,9.9548,9.9462,301.8]
[1672572408926,20.0,9.9546,9.9462,301.8]
[1672572409131,20.0,9.9546,9.9465,40.0]
[1672572409350,20.0,9.9563,9.9468,40.0]
[1672572409561,20.0,9.9563,9.9469,88.12892338]
[1672572409765,20.0,9.9563,9.947,52.64879622]
[1672572409967,20.0,9.9563,9.9472,40.0]
[1672572410298,20.0,9.9563,9.9474,40.0]
[1672572410485,40.0,9.9562,9.9475,88.11816044]
[1672572410704,40.0,9.956,9.9476,12.64803328]
[1672572411028,20.0,9.9559,9.9477,75.47]
[1672572411340,40.0,9.9558,9.9478,12.647779]
[1672572411560,52.35884322,9.9558,9.9479,75.47]
[1672572411754,32.35884322,9.9557,9.948,12.64752472]
[1672572411964,40.0,9.9556,9.9481,75.47]
[1672572412283,40.0,9.9554,9.9482,12.64727044]
[1672572412508,40.0,9.9554,9.9483,75.47]
[1672572412828,40.0,9.9552,9.9484,12.64701619]
[1672572413023,40.0,9.9552,9.9485,75.47]
[1672572413232,20.0,9.9551,9.9486,12.64676194]
[1672572413451,20.0,9.9551,9.9486,12.64663481]
[1672572413976,20.0,9.9551,9.9471,12.64663481]
[1672572414191,20.0,9.9551,9.9472,75.48]
[1672572414407,40.0,9.9549,9.9472,75.48]
[1672572414717,32.35884322,9.9548,9.9473,12.64841475]
[1672572414926,40.0,9.9547,9.9474,75.48]
[1672572415130,20.0,9.9546,9.9475,12.64816044]
[1672572415342,40.0,9.9545,9.9469,88.12803328]
[1672572415553,40.0,9.9543,9.9469,12.64803328]
[1672572415874,40.0,9.9541,9.9469,12.64803328]
[1672572416064,40.0,9.9539,9.9469,12.64803328]
[1672572416270,40.0,9.9537,9.9469,12.64803328]
[1672572416591,40.0,9.9535,9.9469,12.64803328]
[1672572416801,20.0,9.9534,9.9469,12.64803328]
[1672572417132,40.0,9.9533,9.9469,12.64803328]
[1672572417344,20.0,9.9532,9.9469,12.64803328]
[1672572417539,40.0,9.9531,9.9469,12.64803328]
[1672572417751,40.0,9.9529,9.9469,12.64803328]
[1672572418179,40.0,9.9527,9.9469,12.64803328]
[1672572418391,40.0,9.9525,9.9469,12.64803328]
[1672572418806,40.0,9.9523,9.9469,12.64803328]
[1672572419003,40.0,9.9521,9.9469,12.64803328]
[1672572419433,40.0,9.9519,9.9469,12.64803328]
[1672572419855,40.0,9.9517,9.9469,12.64803328]
[1672572420182,12.35884322,9.9516,9.9469,12.64803328]
[1672572420398,40.0,9.9515,9.9469,12.64803328]
[1672572420796,12.35884322,9.9514,9.9469,12.64803328]
[1672572421440,40.0,9.9513,9.9469,12.64803328]
[1672572421755,40.0,9.9513,9.9397,75.53]
[1672572421756,110.72655155,9.9512,9.9397,75.53]
[1672572421964,40.0,9.951,9.9379,75.55]
[1672572422182,40.0,9.9508,9.938,40.0]
[1672572422394,20.0,9.9507,9.9382,301.8]
[1672572422587,78.36770833,9.9507,9.9384,40.0]
[1672572422801,58.36770833,9.9507,9.9386,301.8]
[1672572423022,12.35884322,9.9525,9.9388,341.8]
[1672572423222,58.36770833,9.955,9.9391,40.0]
[1672572423435,12.35884322,9.9525,9.9393,301.8]
[1672572423765,12.35884322,9.9525,9.9396,40.0]
[1672572423965,12.35884322,9.9525,9.9399,40.0]
[1672572424182,12.35884322,9.9525,9.9402,40.0]
[1672572424389,12.35884322,9.9525,9.9404,301.8]
[1672572424603,12.35884322,9.9525,9.9406,301.8]
[1672572424807,12.35884322,9.9525,9.9409,40.0]
[1672572425026,40.0,9.9549,9.9411,301.8]
[1672572425234,12.35884322,9.9548,9.9413,301.8]
[1672572425446,40.0,9.9547,9.9415,341.8]
[1672572425646,40.0,9.9546,9.9418,40.0]
[1672572425970,98.36770833,9.9546,9.942,40.0]
[1672572426189,40.0,9.9544,9.9422,40.0]
[1672572426494,40.0,9.9542,9.9424,40.0]
[1672572426812,40.0,9.954,9.9426,40.0]
[1672572427004,40.0,9.9538,9.9427,75.51]
[1672572427220,40.0,9.9538,9.9301,96.68981063]
[1672572427221,70.75,9.9537,9.94,75.53]
[1672572427429,40.0,9.9536,9.9379,99.8984]
[1672572427653,40.0,9.9534,9.9379,112.9741553]
[1672572427849,40.0,9.9532,9.9379,112.9741553]
[1672572428062,90.75,9.9531,9.9379,112.9741553]
[1672572428269,40.0,9.953,9.9379,112.9741553]
[1672572428483,40.0,9.9528,9.9379,112.9741553]
[1672572428692,40.0,9.9526,9.9379,112.9741553]
[1672572429020,40.0,9.9524,9.9379,112.9741553]
[1672572429227,40.0,9.9522,9.9379,112.9741553]
[1672572429542,90.72,9.9521,9.9379,112.9741553]
[1672572429757,40.0,9.952,9.9379,112.9741553]
[1672572429978,40.0,9.9518,9.9379,112.9741553]
[1672572430281,40.0,9.9516,9.9379,112.9741553]
[1672572430474,40.0,9.9514,9.938,24.2654]
[1672572430685,70.73,9.9513,9.9381,88.6257553]
[1672572430910,60.0,9.9512,9.9381,88.6257553]
[1672572431104,40.0,9.951,9.9381,88.6257553]
[1672572431322,40.0,9.9508,9.9381,88.6257553]
[1672572431638,40.0,9.9506,9.9383,40.0]
[1672572431838,40.0,9.9504,9.9384,88.6157553]
[1672572432049,20.0,9.9503,9.9385,40.0]
[1672572432259,40.0,9.9502,9.9386,88.6157553]
[1672572432490,40.0,9.95,9.9387,40.0]
[1672572432700,40.0,9.95,9.9388,75.54]
[1672572433011,40.0,9.95,9.938,24.2654]
[1672572433012,40.0,9.9498,9.9387,75.54]
[1672572433226,20.0,9.9497,9.9387,13.0757553]
[1672572433415,40.0,9.9496,9.9388,75.54]
[1672572433624,40.0,9.9494,9.9388,75.54]
[1672572433854,20.0,9.9493,9.9384,301.8]
[1672572434058,40.0,9.9492,9.9385,115.54]
[1672572434257,40.0,9.949,9.9385,128.6157553]
[1672572434692,40.0,9.9488,9.9385,128.6157553]
[1672572434917,40.0,9.9486,9.9385,128.6157553]
[1672572435125,20.0,9.9485,9.9385,128.6157553]
[1672572435336,40.0,9.9484,9.9385,88.6157553]
[1672572435645,40.0,9.9482,9.9385,88.6157553]
[1672572435859,20.0,9.9481,9.9385,88.6157553]
[1672572436060,32.35884322,9.9481,9.9386,40.0]
[1672572436270,32.35884322,9.9481,9.9387,88.6157553]
[1672572436480,12.35884322,9.948,9.9388,40.0]
[1672572436806,12.35884322,9.948,9.9389,75.54]
[1672572436807,20.0,9.9479,9.9389,75.54]
[1672572436998,20.0,9.9479,9.939,40.0]
[1672572437214,20.0,9.9479,9.9392,40.0]
[1672572437215,12.35884322,9.9478,9.9392,40.0]
[1672572437427,20.0,9.9477,9.9394,40.0]
[1672572437637,20.0,9.9477,9.9395,75.54]
[1672572437840,20.0,9.9477,9.9393,75.54]
[1672572437841,12.35884322,9.9476,9.9393,75.54]
[1672572438065,20.0,9.9475,9.9393,75.54]
[1672572438257,20.0,9.9475,9.9392,40.0]
[1672572438473,12.35884322,9.9474,9.9393,75.54]
[1672572438683,40.0,9.9472,9.9393,75.54]
[1672572438896,40.0,9.947,9.9384,75.54]
[1672572439105,20.0,9.9469,9.9384,13.0757553]
[1672572439330,40.0,9.9468,9.9385,75.54]
[1672572439526,40.0,9.9466,9.9386,13.0757553]
[1672572439729,40.0,9.9466,9.9387,75.54]
[1672572439963,20.0,9.9465,9.9387,75.54]
[1672572440172,40.0,9.9464,9.9384,75.54]
[1672572440364,20.0,9.9463,9.9384,75.54]
[1672572440579,20.0,9.9463,9.9385,13.0757553]
[1672572440906,104.20037456,9.9462,9.9386,75.54]
[1672572441125,20.0,9.9461,9.9387,13.0757553]
[1672572441316,96.55921778,9.9461,9.9387,13.0757553]
[1672572441532,116.55921778,9.946,9.9383,88.6157553]
[1672572441734,40.0,9.9458,9.9383,88.6157553]
[1672572441954,20.0,9.9457,9.9383,13.0757553]
[1672572442269,40.0,9.9456,9.9383,13.0757553]
[1672572442459,40.0,9.9454,9.9383,13.0757553]
[1672572442680,40.0,9.9452,9.9383,13.0757553]
[1672572442893,40.0,9.945,9.9383,13.0757553]
[1672572443106,20.0,9.9449,9.9383,13.0757553]
[1672572443317,40.0,9.9448,9.9383,13.0757553]
[1672572443525,20.0,9.9447,9.9383,13.0757553]
[1672572443740,40.0,9.9446,9.9383,13.0757553]
[1672572443948,104.20037456,9.9446,9.9383,13.0757553]
[1672572444158,40.0,9.9444,9.9383,13.0757553]
[1672572444372,90.73,9.9443,9.9383,13.0757553]
[1672572444686,108.15650242,9.9442,9.9383,13.0757553]
[1672572444901,40.0,9.944,9.9383,13.0757553]
[1672572445116,90.73,9.9439,9.9383,13.0757553]
[1672572445325,40.0,9.9438,9.9383,13.0757553]
[1672572445517,40.0,9.9436,9.9383,13.0757553]
[1672572445729,20.0,9.9435,9.9383,13.0757553]
[1672572445948,40.0,9.9434,9.9383,13.0757553]
[1672572446146,20.0,9.9433,9.9383,13.0757553]
[1672572446361,89.05370789,9.9435,9.9383,13.0757553]
[1672572446580,40.0,9.9434,9.9383,13.0757553]
[1672572446789,20.0,9.9433,9.9383,13.0757553]
[1672572446999,40.0,9.9432,9.9383,13.0757553]
[1672572447324,20.0,9.9431,9.937,22.709]
[1672572447632,109.05370789,9.943,9.937,22.709]
[1672572447833,40.0,9.9428,9.937,22.709]
[1672572448043,40.0,9.9426,9.937,22.709]
[1672572448582,40.0,9.9424,9.937,22.709]
[1672572448796,40.0,9.9422,9.937,22.709]
[1672572449200,40.0,9.942,9.937,22.709]
[1672572449621,40.0,9.9418,9.937,22.709]
[1672572449951,81.41255111,9.9417,9.937,22.709]
[1672572450141,40.0,9.9416,9.937,22.709]
[1672572450354,121.41255111,9.9416,9.937,22.709]
[1672572450565,81.41255111,9.9415,9.937,22.709]
[1672572452041,40.0,9.9414,9.937,22.709]
[1672572452659,24.4664,9.9463,9.937,22.709]
[1672572452889,40.0,9.9443,9.937,22.709]
[1672572453101,20.0,9.9442,9.9371,22.9326]
[1672572453290,40.0,9.9441,9.9371,22.9326]
[1672572453503,177.21021031,9.9441,9.9371,22.9326]
[1672572453714,177.21021031,9.9441,9.937,22.709]
[1672572453715,40.0,9.9439,9.9372,22.9326]
[1672572453933,40.0,9.9437,9.9372,22.9326]
[1672572454149,20.0,9.9436,9.9372,22.9326]
[1672572454368,40.0,9.9435,9.9372,22.9326]
[1672572454558,20.0,9.9434,9.9372,22.9326]
[1672572454765,40.0,9.9433,9.9372,22.9326]
[1672572454979,40.0,9.9431,9.9372,22.9326]
[1672572455302,40.0,9.9429,9.9372,22.9326]
[1672572455516,20.0,9.9428,9.9306,75.6]
[1672572455709,110.75,9.9427,9.9284,40.0]
[1672572455924,40.0,9.9425,9.9286,40.0]
[1672572456248,40.0,9.9423,9.9288,40.0]
[1672572456456,90.72,9.9422,9.9289,75.62]
[1672572456663,40.0,9.9421,9.929,40.0]
[1672572456990,69.05370789,9.942,9.9292,341.8]
[1672572457204,81.41255111,9.942,9.9295,40.0]
[1672572457444,12.35884322,9.9419,9.9298,40.0]
[1672572457604,12.35884322,9.9419,9.93,301.8]
[1672572457811,12.35884322,9.9419,9.9302,301.8]
[1672572458026,12.35884322,9.9419,9.9304,341.8]
[1672572458235,12.35884322,9.9419,9.9307,40.0]
[1672572458457,12.35884322,9.9419,9.9309,301.8]
[1672572458770,12.35884322,9.9419,9.9312,40.0]
[1672572458966,12.35884322,9.9419,9.9314,301.8]
[1672572459172,69.05370789,9.9436,9.9317,40.0]
[1672572459407,20.0,9.9435,9.932,40.0]
[1672572459620,20.0,9.9435,9.9323,40.0]
[1672572459809,20.0,9.9439,9.9325,301.8]
[1672572460017,20.0,9.9439,9.9327,341.8]
[1672572460228,20.0,9.9439,9.933,40.0]
[1672572460449,69.05370789,9.9447,9.933,40.0]
[1672572460450,20.0,9.9446,9.9332,301.8]
[1672572460668,20.0,9.9446,9.9334,301.8]
[1672572460874,20.0,9.9446,9.9336,40.0]
[1672572461087,20.0,9.9446,9.9338,40.0]
[1672572461405,12.35884322,9.9445,9.934,40.0]
[1672572461620,20.0,9.9444,9.9342,40.0]
[1672572461810,20.0,9.9444,9.9344,40.0]
[1672572462022,12.35884322,9.9443,9.9345,75.57]
[1672572462227,20.0,9.9442,9.9346,40.0]
[1672572462555,69.05370789,9.9441,9.9348,40.0]
[1672572462763,20.0,9.944,9.9351,40.0]
[1672572462971,20.0,9.944,9.9354,40.0]
[1672572463187,20.0,9.944,9.9355,75.57]
[1672572463401,20.0,9.944,9.9357,40.0]
[1672572463609,20.0,9.946,9.936,40.0]
[1672572463801,20.0,9.946,9.9362,301.8]
[1672572464015,20.0,9.946,9.936,40.0]
[1672572464016,73.18316909,9.9459,9.9364,301.8]
[1672572464228,20.0,9.9458,9.9366,40.0]
[1672572464435,20.0,9.9458,9.9368,40.0]
[1672572464652,20.0,9.9458,9.9369,75.56]
[1672572464853,12.35884322,9.9457,9.937,40.0]
[1672572465068,12.35884322,9.9457,9.9372,40.0]
[1672572465397,20.0,9.9456,9.9374,40.0]
[1672572465610,20.0,9.9456,9.9376,40.0]
[1672572465823,174.5957202,9.9456,9.9377,75.55]
[1672572466035,174.5957202,9.9456,9.9378,40.0]
[1672572466223,174.5957202,9.9456,9.9379,75.55]
[1672572466867,174.5957202,9.9456,9.938,23.3819]
[1672572467171,174.5957202,9.9456,9.9381,75.55]
[1672572467385,174.5957202,9.9456,9.9381,23.3819]
[1672572468021,40.0,9.9455,9.9381,23.3819]
[1672572468229,20.0,9.9454,9.9381,23.3819]